[Event "*** MasterClass Titled Tuesday Blitz"]
[Site "Chess.com"]
[Date "2017.07.04"]
[Round "4"]
[White "AndrewDGreen"]
[Black "Lord_Neezy"]
[Result "0-1"]
[WhiteElo "2184"]
[BlackElo "2161"]
[TimeControl "180+2"]
[EndTime "13:52:20 PDT"]
[Termination "Lord_Neezy won by resignation"]

1. d4 {[%clk 0:03:01.9]} 1... e6 {[%clk 0:02:59.8]} 2. Nf3 {[%clk 0:02:58.3]}
2... Nf6 {[%clk 0:03:00.6]} 3. Bf4 {[%clk 0:02:55.9]} 3... b6 {[%clk 0:02:58.4]}
4. e3 {[%clk 0:02:52.4]} 4... Bb7 {[%clk 0:02:59.7]} 5. Be2 {[%clk 0:02:51.1]}
5... Be7 {[%clk 0:03:00.2]} 6. h3 {[%clk 0:02:50.9]} 6... c5 {[%clk 0:03:00.6]}
7. c3 {[%clk 0:02:48.9]} 7... a6 {[%clk 0:02:59.3]} 8. Nbd2 {[%clk 0:02:48.6]}
8... b5 {[%clk 0:02:59.1]} 9. O-O {[%clk 0:02:46.8]} 9... cxd4 {[%clk
0:02:59.2]} 10. exd4 {[%clk 0:02:45.4]} 10... O-O {[%clk 0:02:58.9]} 11. Re1
{[%clk 0:02:42.3]} 11... d6 {[%clk 0:02:58.7]} 12. Bd3 {[%clk 0:02:27.4]} 12...
Nbd7 {[%clk 0:02:44.1]} 13. Qe2 {[%clk 0:02:28]} 13... Nd5 {[%clk 0:02:38]} 14.
Bg3 {[%clk 0:02:25.6]} 14... Re8 {[%clk 0:02:15.1]} 15. a4 {[%clk 0:02:17.8]}
15... b4 {[%clk 0:02:03.9]} 16. c4 {[%clk 0:02:18.4]} 16... N5f6 {[%clk
0:01:58.9]} 17. a5 {[%clk 0:01:55.4]} 17... Bc6 {[%clk 0:01:36.5]} 18. b3 {[%clk
0:01:53.8]} 18... Qc8 {[%clk 0:01:24.3]} 19. Ng5 {[%clk 0:01:28.4]} 19... Nf8
{[%clk 0:01:23]} 20. Bc2 {[%clk 0:01:07.2]} 20... Qb7 {[%clk 0:01:12]} 21. f3
{[%clk 0:00:58]} 21... h6 {[%clk 0:00:54.4]} 22. Nge4 {[%clk 0:00:57.1]} 22...
Rad8 {[%clk 0:00:44.5]} 23. Nxf6+ {[%clk 0:00:49.1]} 23... Bxf6 {[%clk
0:00:46.4]} 24. Bf2 {[%clk 0:00:48.3]} 24... d5 {[%clk 0:00:41.8]} 25. c5 {[%clk
0:00:43.9]} 25... Bb5 {[%clk 0:00:42.8]} 26. Bd3 {[%clk 0:00:35.3]} 26... Bxd3
{[%clk 0:00:43.8]} 27. Qxd3 {[%clk 0:00:37.2]} 27... e5 {[%clk 0:00:41.1]} 28.
dxe5 {[%clk 0:00:36.4]} 28... Bxe5 {[%clk 0:00:40.1]} 29. Bd4 {[%clk 0:00:37]}
29... Bxd4+ {[%clk 0:00:36.9]} 30. Qxd4 {[%clk 0:00:38.2]} 30... Ne6 {[%clk
0:00:38.4]} 31. Qf2 {[%clk 0:00:35.3]} 31... Rc8 {[%clk 0:00:33]} 32. Rac1
{[%clk 0:00:34.9]} 32... Qb5 {[%clk 0:00:31.6]} 33. Re5 {[%clk 0:00:24.1]} 33...
Red8 {[%clk 0:00:26.2]} 34. Nf1 {[%clk 0:00:14]} 34... Nxc5 {[%clk 0:00:18.3]}
35. Rd1 {[%clk 0:00:04.5]} 35... Nd3 {[%clk 0:00:18.2]} 36. Qd4 {[%clk
0:00:05.2]} 36... Nxe5 {[%clk 0:00:18]} 37. Qxe5 {[%clk 0:00:07.1]} 37... Qxa5
{[%clk 0:00:16.9]} 38. Ne3 {[%clk 0:00:07.1]} 38... Qc5 {[%clk 0:00:17.2]} 39.
Kh1 {[%clk 0:00:06.8]} 39... Re8 {[%clk 0:00:16.8]} 40. Qxd5 {[%clk 0:00:03.2]}
40... Qxe3 {[%clk 0:00:15.6]} 41. Qd7 {[%clk 0:00:03.3]} 41... Rc2 {[%clk
0:00:11.1]} 42. Qg4 {[%clk 0:00:03.7]} 42... Qe6 {[%clk 0:00:06.3]} 43. Qg3
{[%clk 0:00:03.3]} 43... Qxb3 {[%clk 0:00:04.2]} 44. Rg1 {[%clk 0:00:03.6]}
44... Rb2 {[%clk 0:00:05.5]} 45. Qg4 {[%clk 0:00:04.7]} 45... Rb1 {[%clk
0:00:06.5]} 46. f4 {[%clk 0:00:06]} 46... Rxg1+ {[%clk 0:00:06.4]} 47. Kxg1
{[%clk 0:00:07.9]} 47... Qb1+ {[%clk 0:00:07.4]} 48. Kh2 {[%clk 0:00:08.9]}
48... Qe4 {[%clk 0:00:09.3]} 49. Qg3 {[%clk 0:00:09.4]} 49... a5 {[%clk
0:00:09.8]} 50. f5 {[%clk 0:00:09.8]} 50... Qxf5 {[%clk 0:00:10]} 0-1

[Event "*** MasterClass Titled Tuesday Blitz"]
[Site "Chess.com"]
[Date "2017.07.04"]
[Round "4"]
[White "DanielNaroditsky"]
[Black "Blitzstream"]
[Result "1-0"]
[WhiteElo "2722"]
[BlackElo "2446"]
[TimeControl "180+2"]
[EndTime "13:52:44 PDT"]
[Termination "DanielNaroditsky won by checkmate"]

1. e4 {[%clk 0:02:56.6]} 1... e5 {[%clk 0:02:59.5]} 2. Nf3 {[%clk 0:02:56.6]}
2... Nf6 {[%clk 0:03:00.5]} 3. Nxe5 {[%clk 0:02:55.8]} 3... d5 {[%clk
0:03:01.3]} 4. exd5 {[%clk 0:02:54.7]} 4... Qxd5 {[%clk 0:03:03.2]} 5. Nf3
{[%clk 0:02:53.6]} 5... Bg4 {[%clk 0:03:01]} 6. Be2 {[%clk 0:02:53.2]} 6... Bd6
{[%clk 0:03:00.4]} 7. Nc3 {[%clk 0:02:53.5]} 7... Qa5 {[%clk 0:02:51.8]} 8. O-O
{[%clk 0:02:53.8]} 8... Nc6 {[%clk 0:02:52.2]} 9. h3 {[%clk 0:02:52.9]} 9... h5
{[%clk 0:02:50.7]} 10. d4 {[%clk 0:02:52.4]} 10... O-O-O {[%clk 0:02:50.8]} 11.
Be3 {[%clk 0:02:51.9]} 11... Qf5 {[%clk 0:02:28]} 12. d5 {[%clk 0:02:35.8]}
12... Bxh3 {[%clk 0:02:11.8]} 13. dxc6 {[%clk 0:02:30.6]} 13... Bxg2 {[%clk
0:01:57.2]} 14. cxb7+ {[%clk 0:02:27.9]} 14... Kb8 {[%clk 0:01:56.2]} 15. Qd4
{[%clk 0:02:25.3]} 15... Bh2+ {[%clk 0:01:07.1]} 16. Kxg2 {[%clk 0:02:22]} 16...
Rxd4 {[%clk 0:01:05.2]} 17. Nxd4 {[%clk 0:02:22.2]} 17... Qg6+ {[%clk
0:00:35.6]} 18. Kxh2 {[%clk 0:02:21.7]} 18... Ng4+ {[%clk 0:00:36.8]} 19. Kh1
{[%clk 0:02:20.5]} 19... Qf6 {[%clk 0:00:30.6]} 20. Nf3 {[%clk 0:02:10.6]} 20...
Re8 {[%clk 0:00:25.7]} 21. Rad1 {[%clk 0:01:37.1]} 21... g5 {[%clk 0:00:17.4]}
22. Bxg5 {[%clk 0:01:23.8]} 22... Qf5 {[%clk 0:00:18.1]} 23. Rd5 {[%clk
0:01:23.2]} 23... Qxc2 {[%clk 0:00:13.3]} 24. Rd2 {[%clk 0:01:08.9]} 24... Qf5
{[%clk 0:00:13.1]} 25. Rd5 {[%clk 0:01:01]} 25... Qc2 {[%clk 0:00:13.4]} 26. Bd2
{[%clk 0:00:53.5]} 26... Qxb2 {[%clk 0:00:07.3]} 27. Bd3 {[%clk 0:00:44.8]}
27... h4 {[%clk 0:00:05.5]} 28. Kg2 {[%clk 0:00:42.4]} 28... h3+ {[%clk
0:00:06.2]} 29. Kxh3 {[%clk 0:00:41.8]} 29... Nf6 {[%clk 0:00:07.3]} 30. Rb5
{[%clk 0:00:40.1]} 30... Qa3 {[%clk 0:00:07]} 31. Rg5 {[%clk 0:00:37.2]} 31...
Qd6 {[%clk 0:00:07.6]} 32. Bf5 {[%clk 0:00:36.5]} 32... Rh8+ {[%clk 0:00:06.8]}
33. Kg2 {[%clk 0:00:36.1]} 33... Nh5 {[%clk 0:00:07.8]} 34. Rh1 {[%clk
0:00:36.1]} 34... Nf4+ {[%clk 0:00:03.5]} 35. Bxf4 {[%clk 0:00:34.5]} 35... Qxf4
{[%clk 0:00:02.7]} 36. Rxh8+ {[%clk 0:00:33.9]} 36... Kxb7 {[%clk 0:00:04.6]}
37. Be4+ {[%clk 0:00:35.4]} 37... c6 {[%clk 0:00:04.9]} 38. Rg7 {[%clk 0:00:36]}
38... Ka6 {[%clk 0:00:05.1]} 39. Rhh7 {[%clk 0:00:36.2]} 39... f5 {[%clk
0:00:04.8]} 40. Rxa7+ {[%clk 0:00:36.1]} 40... Kb6 {[%clk 0:00:06.3]} 41. Na4+
{[%clk 0:00:35.1]} 41... Kb5 {[%clk 0:00:07]} 42. Bd3+ {[%clk 0:00:35.9]} 42...
Kb4 {[%clk 0:00:07.8]} 43. Rhb7+ {[%clk 0:00:33.7]} 43... Ka3 {[%clk 0:00:07.9]}
44. Nc3+ {[%clk 0:00:34]} 44... Qa4 {[%clk 0:00:08.2]} 45. Rb2 {[%clk
0:00:33.6]} 45... Kxb2 {[%clk 0:00:04.6]} 46. Nxa4+ {[%clk 0:00:33.2]} 46... Ka1
{[%clk 0:00:05.5]} 47. Nd2 {[%clk 0:00:33.1]} 47... f4 {[%clk 0:00:07.4]} 48.
Rb7 {[%clk 0:00:33.4]} 48... f3+ {[%clk 0:00:09.3]} 49. Kxf3 {[%clk 0:00:34.5]}
49... c5 {[%clk 0:00:11.2]} 50. Nc3 {[%clk 0:00:35.4]} 50... c4 {[%clk
0:00:11.2]} 51. Rb1# {[%clk 0:00:36.2]} 1-0

[Event "*** MasterClass Titled Tuesday Blitz"]
[Site "Chess.com"]
[Date "2017.07.04"]
[Round "4"]
[White "dretch"]
[Black "DanielRensch"]
[Result "0-1"]
[WhiteElo "2505"]
[BlackElo "2410"]
[TimeControl "180+2"]
[EndTime "13:53:19 PDT"]
[Termination "DanielRensch won by resignation"]

1. d4 {[%clk 0:03:01.9]} 1... Nf6 {[%clk 0:02:57.4]} 2. c4 {[%clk 0:03:02.7]}
2... e6 {[%clk 0:02:58.5]} 3. Nc3 {[%clk 0:03:03.5]} 3... Bb4 {[%clk 0:02:58.8]}
4. Qc2 {[%clk 0:03:04.5]} 4... O-O {[%clk 0:02:59]} 5. a3 {[%clk 0:03:03.8]}
5... Bxc3+ {[%clk 0:03:00]} 6. Qxc3 {[%clk 0:03:05.7]} 6... b5 {[%clk
0:03:01.3]} 7. cxb5 {[%clk 0:03:06]} 7... c6 {[%clk 0:03:02.6]} 8. Bg5 {[%clk
0:03:06.4]} 8... cxb5 {[%clk 0:03:03.4]} 9. e3 {[%clk 0:03:08]} 9... Bb7 {[%clk
0:03:04.2]} 10. Nf3 {[%clk 0:03:07.3]} 10... a6 {[%clk 0:03:05.3]} 11. Bd3
{[%clk 0:03:07]} 11... d6 {[%clk 0:03:06.1]} 12. O-O {[%clk 0:03:07.3]} 12...
Nbd7 {[%clk 0:03:07.2]} 13. Rfc1 {[%clk 0:03:05.8]} 13... Rc8 {[%clk 0:03:08.5]}
14. Qb4 {[%clk 0:03:04.9]} 14... Qb6 {[%clk 0:03:09.7]} 15. Nd2 {[%clk
0:03:03.1]} 15... Nd5 {[%clk 0:03:08.3]} 16. Qb3 {[%clk 0:03:03.5]} 16... Qa7
{[%clk 0:02:57.5]} 17. Rxc8 {[%clk 0:03:01.6]} 17... Rxc8 {[%clk 0:02:57.7]} 18.
Qd1 {[%clk 0:03:02.1]} 18... Qa8 {[%clk 0:02:56.9]} 19. Qh5 {[%clk 0:02:55.1]}
19... Nf8 {[%clk 0:02:57.1]} 20. e4 {[%clk 0:02:52.1]} 20... Nb6 {[%clk
0:02:51.7]} 21. Be7 {[%clk 0:02:46.1]} 21... Nc4 {[%clk 0:02:48.3]} 22. Bxf8
{[%clk 0:02:24.7]} 22... Rxf8 {[%clk 0:02:46.2]} 23. Nxc4 {[%clk 0:01:55.9]}
23... bxc4 {[%clk 0:02:48.1]} 24. Bxc4 {[%clk 0:01:57.5]} 24... Bxe4 {[%clk
0:02:48.1]} 25. Bf1 {[%clk 0:01:49.9]} 25... Rc8 {[%clk 0:02:46]} 26. b4 {[%clk
0:01:45.4]} 26... Bd5 {[%clk 0:02:42.5]} 27. Qg5 {[%clk 0:01:30.2]} 27... h6
{[%clk 0:02:40.9]} 28. Qf4 {[%clk 0:01:25.4]} 28... Qc6 {[%clk 0:02:38.8]} 29.
Re1 {[%clk 0:01:22]} 29... Qc3 {[%clk 0:02:33.6]} 30. Qe3 {[%clk 0:01:19.7]}
30... Bb7 {[%clk 0:02:26.8]} 31. b5 {[%clk 0:01:13]} 31... axb5 {[%clk
0:02:14.8]} 32. Bxb5 {[%clk 0:01:11.7]} 32... Qa5 {[%clk 0:02:16.2]} 33. a4
{[%clk 0:01:10]} 33... Rc3 {[%clk 0:02:17.7]} 34. Qd2 {[%clk 0:01:04.6]} 34...
Qc7 {[%clk 0:02:06.5]} 35. h3 {[%clk 0:01:01.9]} 35... Rc2 {[%clk 0:01:58.9]}
36. Qf4 {[%clk 0:01:02.6]} 36... Bd5 {[%clk 0:01:42.4]} 37. Bd3 {[%clk
0:00:57.2]} 37... Ra2 {[%clk 0:01:38.5]} 38. Rc1 {[%clk 0:00:56.6]} 38... Qd8
{[%clk 0:01:28.3]} 39. Ba6 {[%clk 0:00:50.8]} 39... Qg5 {[%clk 0:01:18.4]} 40.
Qxg5 {[%clk 0:00:29.8]} 40... hxg5 {[%clk 0:01:18.6]} 41. Bb5 {[%clk 0:00:28.9]}
41... f5 {[%clk 0:01:17.1]} 42. f3 {[%clk 0:00:18.1]} 42... g4 {[%clk
0:01:08.5]} 43. hxg4 {[%clk 0:00:14.1]} 43... fxg4 {[%clk 0:01:09.8]} 44. fxg4
{[%clk 0:00:12.3]} 44... Rxg2+ {[%clk 0:01:08.9]} 45. Kf1 {[%clk 0:00:13.1]}
45... Rxg4 {[%clk 0:01:09.3]} 46. Rd1 {[%clk 0:00:13.8]} 46... Rh4 {[%clk
0:01:04.3]} 47. Kf2 {[%clk 0:00:14.5]} 47... Rh2+ {[%clk 0:01:04.5]} 48. Ke3
{[%clk 0:00:15.6]} 48... Ra2 {[%clk 0:01:01.5]} 49. Rc1 {[%clk 0:00:16.7]} 49...
Kf7 {[%clk 0:00:59.7]} 50. Rc7+ {[%clk 0:00:17.2]} 50... Kf6 {[%clk 0:01:00.8]}
51. Rd7 {[%clk 0:00:18.5]} 51... g5 {[%clk 0:01:01]} 52. Rxd6 {[%clk 0:00:18.3]}
52... Ra3+ {[%clk 0:00:56.8]} 53. Ke2 {[%clk 0:00:17.5]} 53... g4 {[%clk
0:00:57.8]} 54. Rd8 {[%clk 0:00:18.4]} 54... g3 {[%clk 0:00:58.3]} 55. Rg8
{[%clk 0:00:19.3]} 55... g2 {[%clk 0:00:50]} 56. Kf2 {[%clk 0:00:19.8]} 56...
Ra2+ {[%clk 0:00:51.1]} 57. Ke3 {[%clk 0:00:20.6]} 57... Ra1 {[%clk 0:00:51.4]}
58. Kf2 {[%clk 0:00:21.7]} 58... Be4 {[%clk 0:00:31.5]} 59. Rg4 {[%clk
0:00:18.8]} 59... Kf5 {[%clk 0:00:30.5]} 60. Rg8 {[%clk 0:00:17.8]} 60... Ra2+
{[%clk 0:00:26.7]} 61. Ke3 {[%clk 0:00:18.8]} 61... Ra3+ {[%clk 0:00:27]} 62.
Kf2 {[%clk 0:00:19.4]} 62... Kf4 {[%clk 0:00:27.1]} 63. Rf8+ {[%clk 0:00:19.8]}
63... Kg5 {[%clk 0:00:27]} 64. Rg8+ {[%clk 0:00:20.7]} 64... Kf4 {[%clk
0:00:26.8]} 65. Rf8+ {[%clk 0:00:22]} 65... Kg5 {[%clk 0:00:25.8]} 66. Rg8+
{[%clk 0:00:23.3]} 66... Kf6 {[%clk 0:00:26.9]} 67. Rg4 {[%clk 0:00:17.4]} 67...
Ra2+ {[%clk 0:00:26.7]} 68. Kg1 {[%clk 0:00:16.7]} 68... Bd5 {[%clk 0:00:27.5]}
69. Rg8 {[%clk 0:00:15.8]} 69... Kf5 {[%clk 0:00:28.2]} 70. Rg7 {[%clk
0:00:13.5]} 70... Kf4 {[%clk 0:00:28.5]} 71. Rg8 {[%clk 0:00:14.3]} 71... Ke3
{[%clk 0:00:27.6]} 72. Rg3+ {[%clk 0:00:15.2]} 72... Kxd4 {[%clk 0:00:27.6]} 73.
Bd7 {[%clk 0:00:06.9]} 73... Ra1+ {[%clk 0:00:25.6]} 74. Kf2 {[%clk 0:00:07.3]}
74... Rf1+ {[%clk 0:00:26.3]} 75. Ke2 {[%clk 0:00:08.8]} 75... g1=Q {[%clk
0:00:27.1]} 0-1

[Event "*** MasterClass Titled Tuesday Blitz"]
[Site "Chess.com"]
[Date "2017.07.04"]
[Round "4"]
[White "Godzillator"]
[Black "Rokis13"]
[Result "1/2-1/2"]
[WhiteElo "2269"]
[BlackElo "2345"]
[TimeControl "180+2"]
[EndTime "13:53:30 PDT"]
[Termination "Game drawn by agreement"]

1. d4 {[%clk 0:03:01.9]} 1... Nf6 {[%clk 0:02:59.9]} 2. c4 {[%clk 0:03:03]} 2...
e6 {[%clk 0:02:59.8]} 3. Nc3 {[%clk 0:03:04.2]} 3... Bb4 {[%clk 0:02:59.9]} 4.
Qc2 {[%clk 0:03:05.4]} 4... O-O {[%clk 0:02:58.8]} 5. a3 {[%clk 0:03:06.4]} 5...
Bxc3+ {[%clk 0:02:59.6]} 6. Qxc3 {[%clk 0:03:08.1]} 6... Qe7 {[%clk 0:03:00.9]}
7. Bg5 {[%clk 0:03:06.5]} 7... d6 {[%clk 0:03:00.9]} 8. e3 {[%clk 0:03:06.4]}
8... e5 {[%clk 0:03:01.7]} 9. dxe5 {[%clk 0:03:07.1]} 9... dxe5 {[%clk
0:03:02.4]} 10. Nf3 {[%clk 0:03:07.7]} 10... Re8 {[%clk 0:02:58.4]} 11. Be2
{[%clk 0:03:08.4]} 11... Nc6 {[%clk 0:02:56.8]} 12. Qc2 {[%clk 0:03:00.4]} 12...
h6 {[%clk 0:02:56.9]} 13. Bh4 {[%clk 0:03:00.6]} 13... Bg4 {[%clk 0:02:49.7]}
14. O-O {[%clk 0:02:53.6]} 14... Rad8 {[%clk 0:02:50.4]} 15. Rfd1 {[%clk
0:02:51.7]} 15... Bh5 {[%clk 0:02:48.7]} 16. b4 {[%clk 0:02:43.3]} 16... Qe6
{[%clk 0:02:43.6]} 17. Qb2 {[%clk 0:02:31.1]} 17... Rxd1+ {[%clk 0:02:24.9]} 18.
Rxd1 {[%clk 0:02:30.9]} 18... Bg6 {[%clk 0:01:50.1]} 19. h3 {[%clk 0:02:20.5]}
19... a5 {[%clk 0:01:46.4]} 20. b5 {[%clk 0:02:11.4]} 20... Nb8 {[%clk
0:01:45.9]} 21. Qc3 {[%clk 0:01:57.9]} 21... b6 {[%clk 0:01:43.5]} 22. c5 {[%clk
0:01:58.9]} 22... Nbd7 {[%clk 0:01:43.9]} 23. cxb6 {[%clk 0:01:57.3]} 23... cxb6
{[%clk 0:01:44.2]} 24. Bc4 {[%clk 0:01:49.3]} 24... Qe7 {[%clk 0:01:40]} 25. Bg3
{[%clk 0:01:46.9]} 25... Bh5 {[%clk 0:01:33.2]} 26. Bd5 {[%clk 0:01:26.3]} 26...
e4 {[%clk 0:01:29.2]} 27. Bd6 {[%clk 0:01:15.2]} 27... Qd8 {[%clk 0:01:21.6]}
28. Bc6 {[%clk 0:01:13.4]} 28... exf3 {[%clk 0:01:16.8]} 29. g4 {[%clk
0:01:14.4]} 29... Bg6 {[%clk 0:01:10.7]} 30. Be5 {[%clk 0:01:15.4]} 30... Qe7
{[%clk 0:00:58.3]} 31. Bxf6 {[%clk 0:01:16.4]} 31... Nxf6 {[%clk 0:00:54.7]} 32.
Bxe8 {[%clk 0:01:16.2]} 32... Qxe8 {[%clk 0:00:56.6]} 33. a4 {[%clk 0:01:13.6]}
33... Kh7 {[%clk 0:00:47.3]} 34. Qd4 {[%clk 0:01:08.7]} 34... Qe6 {[%clk
0:00:43.2]} 35. Rc1 {[%clk 0:01:07.4]} 35... Be4 {[%clk 0:00:31.9]} 36. Kf1
{[%clk 0:00:43.2]} 36... h5 {[%clk 0:00:29.4]} 37. Ke1 {[%clk 0:00:38.4]} 37...
hxg4 {[%clk 0:00:29.6]} 38. hxg4 {[%clk 0:00:39.1]} 38... Qxg4 {[%clk
0:00:30.4]} 39. Kd2 {[%clk 0:00:36.7]} 39... Qd7 {[%clk 0:00:31.1]} 40. Qxd7
{[%clk 0:00:36.2]} 40... Nxd7 {[%clk 0:00:33]} 41. Rc6 {[%clk 0:00:28.7]} 41...
Bxc6 {[%clk 0:00:27.7]} 42. bxc6 {[%clk 0:00:29.3]} 42... Ne5 {[%clk 0:00:29.2]}
43. c7 {[%clk 0:00:27.5]} 43... Nc4+ {[%clk 0:00:30.1]} 44. Kd3 {[%clk
0:00:25.4]} 44... Nd6 {[%clk 0:00:32]} 45. Kd4 {[%clk 0:00:26.2]} 45... b5
{[%clk 0:00:31.9]} 46. Kd5 {[%clk 0:00:26.9]} 46... Nc8 {[%clk 0:00:31.4]} 47.
axb5 {[%clk 0:00:28.1]} 47... a4 {[%clk 0:00:32.3]} 48. Kc6 {[%clk 0:00:29.4]}
48... a3 {[%clk 0:00:33.1]} 49. b6 {[%clk 0:00:30.8]} 49... a2 {[%clk
0:00:32.4]} 50. b7 {[%clk 0:00:32]} 50... Na7+ {[%clk 0:00:33.4]} 51. Kd7 {[%clk
0:00:30.4]} 51... a1=Q {[%clk 0:00:33.5]} 52. b8=Q {[%clk 0:00:30.9]} 52... Qd1+
{[%clk 0:00:30.2]} 53. Ke8 {[%clk 0:00:29.8]} 53... Qa4+ {[%clk 0:00:29.6]} 54.
Kxf7 {[%clk 0:00:28.8]} 54... Qd7+ {[%clk 0:00:30.5]} 55. Kf8 {[%clk 0:00:29.4]}
55... Qd6+ {[%clk 0:00:29.5]} 56. Kf7 {[%clk 0:00:29.9]} 56... Qf6+ {[%clk
0:00:30.3]} 57. Ke8 {[%clk 0:00:30.3]} 57... Qe5+ {[%clk 0:00:29.6]} 58. Kf7
{[%clk 0:00:31]} 58... Qf5+ {[%clk 0:00:29]} 59. Ke8 {[%clk 0:00:31.5]} 59...
Nc6 {[%clk 0:00:25.1]} 60. c8=Q {[%clk 0:00:24.9]} 60... Qe4+ {[%clk 0:00:19.4]}
61. Kd7 {[%clk 0:00:20.1]} 61... Nxb8+ {[%clk 0:00:20]} 62. Qxb8 {[%clk
0:00:20.7]} 62... Qd5+ {[%clk 0:00:20]} 63. Ke7 {[%clk 0:00:21.1]} 63... Qg5+
{[%clk 0:00:20.8]} 64. Kd7 {[%clk 0:00:21.2]} 64... Qh5 {[%clk 0:00:21]} 65. Qg3
{[%clk 0:00:19.6]} 65... Kh6 {[%clk 0:00:20.6]} 66. Ke6 {[%clk 0:00:17.6]} 66...
g6 {[%clk 0:00:21.8]} 67. Kf6 {[%clk 0:00:16.5]} 67... Qf5+ {[%clk 0:00:22.2]}
68. Ke7 {[%clk 0:00:17.6]} 68... Kh5 {[%clk 0:00:22.6]} 69. Qh2+ {[%clk
0:00:17.6]} 69... Kg5 {[%clk 0:00:23]} 70. Qg3+ {[%clk 0:00:18.4]} 1/2-1/2

[Event "*** MasterClass Titled Tuesday Blitz"]
[Site "Chess.com"]
[Date "2017.07.04"]
[Round "5"]
[White "jeaston1"]
[Black "abubakrtagelsir"]
[Result "0-1"]
[WhiteElo "2040"]
[BlackElo "2170"]
[TimeControl "180+2"]
[EndTime "14:01:01 PDT"]
[Termination "abubakrtagelsir won by resignation"]

1. d4 {[%clk 0:03:01.9]} 1... d5 {[%clk 0:02:58.5]} 2. c4 {[%clk 0:02:59.5]}
2... c6 {[%clk 0:02:59]} 3. Nc3 {[%clk 0:02:55.1]} 3... Nf6 {[%clk 0:02:59.3]}
4. e3 {[%clk 0:02:56.2]} 4... a6 {[%clk 0:02:58.9]} 5. Qc2 {[%clk 0:02:56.4]}
5... Bg4 {[%clk 0:02:56.6]} 6. Nge2 {[%clk 0:02:55.5]} 6... Bh5 {[%clk
0:02:55.6]} 7. Nf4 {[%clk 0:02:55]} 7... Bg6 {[%clk 0:02:55.9]} 8. Nxg6 {[%clk
0:02:55.7]} 8... hxg6 {[%clk 0:02:56.4]} 9. a4 {[%clk 0:02:54]} 9... e6 {[%clk
0:02:56.6]} 10. Bd2 {[%clk 0:02:47.9]} 10... a5 {[%clk 0:02:56]} 11. Rd1 {[%clk
0:02:41.9]} 11... Na6 {[%clk 0:02:54.9]} 12. Na2 {[%clk 0:02:36.4]} 12... Qc7
{[%clk 0:02:45.7]} 13. cxd5 {[%clk 0:02:36.5]} 13... exd5 {[%clk 0:02:41.6]} 14.
Bxa6 {[%clk 0:02:28.8]} 14... Rxa6 {[%clk 0:02:41.2]} 15. Nc3 {[%clk 0:02:27.6]}
15... Rxh2 {[%clk 0:02:39]} 16. Rxh2 {[%clk 0:02:28.3]} 16... Qxh2 {[%clk
0:02:38.8]} 17. g3 {[%clk 0:02:17.3]} 17... Ng4 {[%clk 0:02:21.3]} 18. Bc1
{[%clk 0:02:17]} 18... Qg1+ {[%clk 0:02:20.5]} 0-1

[Event "*** MasterClass Titled Tuesday Blitz"]
[Site "Chess.com"]
[Date "2017.07.04"]
[Round "5"]
[White "Msb2"]
[Black "DanielRensch"]
[Result "1-0"]
[WhiteElo "2545"]
[BlackElo "2405"]
[TimeControl "180+2"]
[EndTime "14:01:23 PDT"]
[Termination "Msb2 won by resignation"]

1. d4 {[%clk 0:03:01.9]} 1... Nf6 {[%clk 0:03:00.7]} 2. c4 {[%clk 0:03:03]} 2...
e6 {[%clk 0:03:01.8]} 3. g3 {[%clk 0:03:04.1]} 3... d5 {[%clk 0:03:02.3]} 4. Bg2
{[%clk 0:03:05.3]} 4... dxc4 {[%clk 0:03:03.7]} 5. Nf3 {[%clk 0:03:06.1]} 5...
b5 {[%clk 0:03:04.4]} 6. O-O {[%clk 0:03:02.2]} 6... Be7 {[%clk 0:03:04.8]} 7.
a4 {[%clk 0:02:57.3]} 7... c6 {[%clk 0:03:05.5]} 8. Ne5 {[%clk 0:02:52]} 8...
Nd5 {[%clk 0:03:06.9]} 9. Nc3 {[%clk 0:02:52.9]} 9... a6 {[%clk 0:02:57.2]} 10.
axb5 {[%clk 0:02:45.2]} 10... cxb5 {[%clk 0:02:57.1]} 11. Nxb5 {[%clk
0:02:46.5]} 11... O-O {[%clk 0:02:57.1]} 12. Nc3 {[%clk 0:02:45.4]} 12... Qc7
{[%clk 0:02:53.5]} 13. Nxd5 {[%clk 0:02:42.3]} 13... exd5 {[%clk 0:02:53.8]} 14.
Bxd5 {[%clk 0:02:44.2]} 14... Bb7 {[%clk 0:02:54.8]} 15. Bxb7 {[%clk 0:02:44.6]}
15... Qxb7 {[%clk 0:02:56.1]} 16. Nxc4 {[%clk 0:02:46.2]} 16... Nc6 {[%clk
0:02:57.6]} 17. d5 {[%clk 0:02:34.8]} 17... Nb4 {[%clk 0:02:56.4]} 18. e4 {[%clk
0:02:27.6]} 18... Rfc8 {[%clk 0:02:56.9]} 19. b3 {[%clk 0:02:26.3]} 19... Bc5
{[%clk 0:02:57.5]} 20. Bb2 {[%clk 0:02:26.2]} 20... Qe7 {[%clk 0:02:58.9]} 21.
Qg4 {[%clk 0:02:25.6]} 21... Qf8 {[%clk 0:02:58.7]} 22. Rad1 {[%clk 0:02:24.3]}
22... Rab8 {[%clk 0:02:58.8]} 23. Ne5 {[%clk 0:02:23.1]} 23... f5 {[%clk
0:02:44.1]} 24. exf5 {[%clk 0:02:19.5]} 24... Rd8 {[%clk 0:02:43.7]} 25. Nc6
{[%clk 0:02:09.3]} 25... Nxc6 {[%clk 0:02:39.4]} 26. dxc6 {[%clk 0:02:11.2]} 1-0

[Event "*** MasterClass Titled Tuesday Blitz"]
[Site "Chess.com"]
[Date "2017.07.04"]
[Round "5"]
[White "silverback96"]
[Black "evgenysharapov"]
[Result "1-0"]
[WhiteElo "2125"]
[BlackElo "2217"]
[TimeControl "180+2"]
[EndTime "14:01:34 PDT"]
[Termination "silverback96 won by resignation"]

1. Nf3 {[%clk 0:03:01.9]} 1... c5 {[%clk 0:02:58.7]} 2. g3 {[%clk 0:03:03.4]}
2... Nc6 {[%clk 0:02:58]} 3. Bg2 {[%clk 0:03:04.3]} 3... e5 {[%clk 0:02:57.5]}
4. O-O {[%clk 0:03:06.2]} 4... g6 {[%clk 0:02:57.1]} 5. c4 {[%clk 0:03:07.8]}
5... Bg7 {[%clk 0:02:57]} 6. Nc3 {[%clk 0:03:04.3]} 6... d6 {[%clk 0:02:56.4]}
7. a3 {[%clk 0:03:05.7]} 7... a5 {[%clk 0:02:54.4]} 8. Ne1 {[%clk 0:03:03.4]}
8... Be6 {[%clk 0:02:52.4]} 9. d3 {[%clk 0:03:03.9]} 9... Nge7 {[%clk
0:02:51.9]} 10. Nc2 {[%clk 0:03:05.4]} 10... d5 {[%clk 0:02:49.6]} 11. cxd5
{[%clk 0:03:07.3]} 11... Nxd5 {[%clk 0:02:48.1]} 12. Ne3 {[%clk 0:03:09.2]}
12... Nde7 {[%clk 0:02:47.1]} 13. Qa4 {[%clk 0:03:10.8]} 13... O-O {[%clk
0:02:45.6]} 14. Nc4 {[%clk 0:03:11.4]} 14... Rb8 {[%clk 0:02:38.3]} 15. Nb5
{[%clk 0:03:10.8]} 15... Bd5 {[%clk 0:02:26.5]} 16. Bh3 {[%clk 0:02:46.7]} 16...
f5 {[%clk 0:02:15.8]} 17. Bg5 {[%clk 0:02:45.3]} 17... h6 {[%clk 0:02:14.2]} 18.
Bxe7 {[%clk 0:02:42.7]} 18... Qxe7 {[%clk 0:02:10.5]} 19. Nb6 {[%clk 0:02:43]}
19... Kh8 {[%clk 0:01:59.5]} 20. Nxd5 {[%clk 0:02:35.1]} 1-0